Cogmind - Beta 16 @@@ ROGUE MODE // 2026.02.05 @ 18:15:46 Player: Megaknight51 Result: Destroyed by D-53 Grenadier with Mini Grenade Launcher Performance ------------- Evolutions (0) 0 Regions Visited (2) 400 Robots Destroyed (22) 110 Value Destroyed (343) 343 Prototype IDs (2) 40 Alien Tech Used (0) 0 Bonus (0) 0 TOTAL SCORE: 893 Bonus ------- None Cogmind --------- Core Integrity 0/250 Matter 264/300 Energy 100/100 System Corruption 0% Temperature Cool (0) Movement Core (350) Ox6 Location -10/Mines Parts ------- > --- POWER (1) -------- (None) > --- PROPULSION (2) --- (None) > --- UTILITY (2) ------ Large Storage Unit > --- WEAPON (2) ------- (None) > --- INVENTORY (15) --- Ion Engine Flight Unit Flight Unit Flight Unit Structural Scanner Sensor Array Improved Terrain Scanner ECM Suite Hacking Suite Shotgun Peak State ------------ > --- POWER ------------ Ion Engine > --- PROPULSION ------- Light Treads Light Treads > --- UTILITY ---------- Small Storage Unit Medium Armor Plating > --- WEAPON ----------- Shotgun Shotgun > --- INVENTORY -------- Ion Engine Structural Scanner Sensor Array Improved Terrain Scanner ECM Suite Assault Rifle Shotgun Shotgun [Rating: 11] Favorites ----------- Power Ion Engine Engine Ion Engine Propulsion Light Treads Treads Light Treads Utility Small Storage Unit Device Seismic Detector Storage Small Storage Unit Protection Medium Armor Plating Weapon Shotgun Ballistic Gun Shotgun Build | -11 -10 -10 ------- Run | Yrd Mat Min Slots Evolved . | . . . Power . | . . . Propulsion . | . . . Utility . | . . . Weapon . | . . . Parts Attached 12 | 7 4 1 Power 1 | 1 . . Engine 1 | 1 . . Core . | . . . Reactor . | . . . Propulsion 2 | 2 . . Treads 2 | 2 . . Leg . | . . . Wheel . | . . . Hover . | . . . Flight . | . . . Utility 4 | 2 2 . Device 1 | 1 . . Storage 2 | 1 1 . Processor . | . . . Hackware . | . . . Protection 1 | . 1 . Artifact . | . . . Weapon 5 | 2 2 1 Energy Gun . | . . . Energy Cannon . | . . . Ballistic Gun 5 | 2 2 1 Ballistic Cannon . | . . . Launcher . | . . . Special Weapon . | . . . Impact Weapon . | . . . Slashing Weapon . | . . . Piercing Weapon . | . . . Special Melee Weapon . | . . . Unidentified Prototypes . | . . . Parts Lost 6 | . . 6 Power 1 | . . 1 Propulsion 2 | . . 2 Utility 1 | . . 1 Weapon 2 | . . 2 Highest Loss Streak 6 | . . 6 To Critical Strikes . | . . . Average Backups 6 | . 6 10 Power . | . 1 1 Propulsion . | . . 3 Utility 3 | . 4 5 Weapon 1 | . 1 1 Tool/Special . | . . . Unused Backups 7 | . . 7 Power 1 | . . 1 Propulsion . | . . . Utility 5 | . . 5 Weapon 1 | . . 1 Tool/Special . | . . . Average Slot Usage (%) 99 | . 100 92 Engine 13 | . 14 12 Treads 27 | . 28 24 Device 4 | . 4 . Storage 14 | . 14 14 Protection 9 | . 9 11 Ballistic Gun 28 | . 28 28 Peak Build Rating 11 | 7 11 11 Average Rating 9 | 5 9 10 On Entrance 6 | . 7 11 Avg Prop Armor Cover (%) . | . . . Naked Turns . | . . . Heaviest Build 38 | 14 38 38 Greatest Support 40 | 40 40 40 Greatest Overweight (x) 1 | 1 . . Average Overweight (x) . | . . . Largest Inventory Capacity 15 | 8 15 15 Average Capacity 9 | 7 9 15 Most Carried 11 | 2 11 11 Average Carried 6 | . 6 10 Final Capacity 15 | 8 15 15 Final Carried 11 | 2 11 10 Class Distribution -------------------- 100% | Mutant Dominant Class ---------------- Mutant | -10/Materials Mutant | -10/Mines Resources | -11 -10 -10 ----------- Run | Yrd Mat Min Matter Collected 559 | 293 232 34 Remotely . | . . . Salvage Created 663 | 112 496 55 Parts 51 | 10 41 . Haulers Intercepted . | . . . Recyclers Shooed 4 | . 4 . Parts Field Recycled . | . . . Retrieved Matter . | . . . Parts Self-Destructed . | . . . Prevented . | . . . Parts Restored . | . . . Kills | -11 -10 -10 ------- Run | Yrd Mat Min Combat Hostiles Destroyed 21 | . 15 6 Guns 21 | . 15 6 Classes Destroyed 7 | 2 4 1 Worker 1 | . 1 . Tunneler 2 | 2 . . Recycler 3 | 1 2 . Operator 1 | . 1 . Swarmer 9 | . 9 . Grunt 6 | . 6 . Assembled 6 | . . 6 Best Kill Streak 6 | 3 6 6 Combat Bots Only 6 | . 3 6 Max Kills in Single Turn 2 | 1 2 1 Gunslinging 1 | . 1 . Exploded . | . . . Melee . | . . . Uniques/NPCs Destroyed . | . . . Combat | -11 -10 -10 -------- Run | Yrd Mat Min Hostile Shots Fired 87 | . 36 51 Missed 24 | . 15 9 Hits 63 | . 21 42 Melee 9 | . . 9 Projectile 54 | . 21 33 AOE 6 | . . 6 Critical Strikes 1 | . . 1 Part Disruptions 3 | . . 3 Damage Taken 1055 | . 186 869 Core 263 | . 35 228 Absorbed by Shields . | . . . Core Remaining (%) 100 | 100 . . Volleys Fired 48 | 6 26 16 Largest 2 | 2 2 2 Hottest 46 | 40 46 46 Shots Fired 89 | 12 52 25 Gun 89 | 12 52 25 Cannon . | . . . Launcher . | . . . Special . | . . . Kinetic 89 | 12 52 25 Thermal . | . . . Explosive . | . . . Electromagnetic . | . . . Robot Hit Streak 12 | 7 12 8 Robot Miss Streak 5 | 1 5 5 Penetration Max . | . . . Secondary Targets 3 | . 3 . Max Gunslinging Chain 1 | . 1 . Shots Hit Robots 66 | 9 37 20 Core Hits 49 | 4 29 16 Critical Kills 1 | . 1 . Critical Parts Destroyed . | . . . Critical Strikes 1 | . 1 . Destroy 1 | . 1 . Melee Attacks . | . . . Impact . | . . . Slashing . | . . . Piercing . | . . . Sneak Attacks . | . . . Combat Hostiles . | . . . Follow-up Attacks . | . . . Damage Inflicted 997 | 109 542 346 Guns 989 | 109 536 344 Cannons . | . . . Explosions . | . . . Melee . | . . . Ramming 8 | . 6 2 Kinetic 989 | 109 536 344 Thermal . | . . . Explosive . | . . . Electromagnetic . | . . . Impact . | . . . Slashing . | . . . Piercing . | . . . Highest Corruption . | . . . Average Corruption . | . . . Corruption Purged . | . . . Corruption Blocked . | . . . Overload Shots . | . . . Overflow Damage . | . . . Projectiles . | . . . Explosions . | . . . Melee . | . . . Knockbacks . | . . . Impact . | . . . Kinetic . | . . . Secondary . | . . . Self-Inflicted Damage . | . . . Shots . | . . . Rammed 7 | . 4 3 Targets Rammed 7 | . 4 3 Kicked . | . . . Crushed . | . . . Highest Temperature 33 | . 6 33 Average Temperature 9 | . 3 12 Received Heat Transfer 156 | . 36 120 Siege Activations . | . . . Martial Activations . | . . . Shielding Activations . | . . . Robots Disrupted . | . . . Combat Hostiles . | . . . Robots Corrupted . | . . . Combat Hostiles . | . . . Parts Fried . | . . . Impact Corruptions . | . . . Robots Melted . | . . . Combat Hostiles . | . . . Parts Melted . | . . . Heat Transferred . | . . . Parts Sabotaged . | . . . Parts Stolen . | . . . Parts Stripped . | . . . Power Chain Reactions . | . . . Alert | -11 -10 -10 ------- Run | Yrd Mat Min Maximum Alert Level . | . . . Low Security (%) 100 | 100 100 100 Level 1 . | . . . Level 2 . | . . . Level 3 . | . . . Level 4 . | . . . Level 5 . | . . . High Security . | . . . Max Security . | . . . Peak Influence 152 | 10 152 52 Initial 52 | . . 52 Average 52 | 1 62 30 Influence Increases 407 | 15 392 . Destroy 0b10 Robot/C 300 | . 300 . Destroy 0b10 Robot/NC 35 | 15 20 . Destroy Leader 60 | . 60 . Successful Hack 12 | . 12 . Influence Decreases 407 | 15 256 136 Entered New Map 84 | . . 84 Time Decay 311 | 15 256 40 Lost Part 12 | . . 12 Squads Dispatched 3 | . 3 . Investigation 1 | . 1 . Extermination . | . . . Reinforcement 2 | . 2 . Assault . | . . . Garrison . | . . . Intercept . | . . . Searches Triggered . | . . . Construction Impeded . | . . . Haulers Reinforced . | . . . Active Scanning Responses . | . . . Cargo Convoy Interrupts . | . . . Stealth | -11 -10 -10 --------- Run | Yrd Mat Min Distress Signals 4 | . 4 . Communications Jammed . | . . . Distress Signals . | . . . Times Spotted 43 | . 23 20 Peak Tracking Total 10 | . 4 10 Tactical Retreats . | . . . Traps | -11 -10 -10 ------- Run | Yrd Mat Min Traps Triggered 1 | . 1 . Indirectly . | . . . Trap Hack Attempts . | . . . Triggered . | . . . Disarmed . | . . . Reprogrammed . | . . . Reused . | . . . Traps Extracted . | . . . Installed . | . . . Triggered . | . . . Machines | -11 -10 -10 ---------- Run | Yrd Mat Min Machines Disabled . | . . . Max in Single Turn . | . . . Machines Repaired . | . . . Machines Dismantled . | . . . Machines Sabotaged . | . . . Overloaded Fab Kills . | . . . Hacking | -11 -10 -10 --------- Run | Yrd Mat Min Machines Accessed 4 | . 4 . Terminals 4 | . 4 . Fabricators . | . . . Repair Stations . | . . . Recycling Units . | . . . Scanalyzers . | . . . Garrison Access . | . . . Total Hacks 13 | . 13 . Successful 6 | . 6 . Failed 6 | . 6 . Catastrophic . | . . . Database Lockouts 1 | . 1 . Manual 7 | . 7 . Terminals 13 | . 13 . Fabricators . | . . . Repair Stations . | . . . Recycling Units . | . . . Scanalyzers . | . . . Garrison Access . | . . . Terminal Hacks 6 | . 6 . Robot Analysis 2 | . 2 . Prototype ID Bank 1 | . 1 . Terminal Index 1 | . 1 . Hauler Manifests 1 | . 1 . Registered Components 1 | . 1 . Fabricator Hacks . | . . . Repair Station Hacks . | . . . Recycling Unit Hacks . | . . . Scanalyzer . | . . . Garrison Access Hacks . | . . . Unauthorized Hacks . | . . . Terminals . | . . . Fabricators . | . . . Repair Stations . | . . . Recycling Units . | . . . Scanalyzers . | . . . Garrison Access . | . . . Data Cores Recovered . | . . . Used . | . . . Hacking Detections 4 | . 4 . Full Trace Events . | . . . Feedback Events . | . . . Feedback Blocked . | . . . Robot Schematics Acquired . | . . . Robots Built . | . . . Authchips . | . . . Time . | . . . Total Robot Build Rating . | . . . Part Schematics Acquired . | . . . Parts Built . | . . . Authchips . | . . . Time . | . . . Total Part Build Rating . | . . . Part Studies Acquired . | . . . Parts Repaired . | . . . Time . | . . . Parts Recycled . | . . . Recycled Matter . | . . . Retrieved Matter . | . . . Retrieved Components . | . . . Parts Scanalyzed . | . . . Part Schematics Acquired . | . . . Parts Damaged . | . . . Bothacking | -11 -10 -10 ------------ Run | Yrd Mat Min Used RIF Installer . | . . . Robots Hacked . | . . . Non-combat . | . . . Combat . | . . . Robot Hacks Applied . | . . . Relay Couplers Released . | . . . Fabnet Peak Effective % . | . . . Robots Rewired . | . . . Allies Hacked . | . . . Hacks Repelled . | . . . Allies | -11 -10 -10 -------- Run | Yrd Mat Min Total Allies . | . . . Largest Group . | . . . Highest-Rated Group . | . . . Highest-Rated Ally . | . . . Total Orders . | . . . Ally Attacks . | . . . Total Damage . | . . . Kills . | . . . Allies Corrupted . | . . . Allies Melted . | . . . Intel | -11 -10 -10 ------- Run | Yrd Mat Min Active Infowar (turns) 254 | 7 247 . Seismic 254 | 7 247 . Robot Analysis Total 2 | . 2 . Derelict Logs Recovered 1 | . . 1 Drone Launches . | . . . Drone Recoveries . | . . . Exploration | -11 -10 -10 ------------- Run | Yrd Mat Min Turns Passed 1000 | 112 792 96 Spaces Moved 509 | 61 420 28 Core 13 | 13 . . Treads 496 | 48 420 28 Legs . | . . . Wheels . | . . . Hover . | . . . Flight . | . . . Fastest Speed 50 | 50 160 160 Average Speed 157 | 138 160 160 Slowest Speed 160 | 160 160 160 Overloaded Moves . | . . . Propulsion Burnouts . | . . . Robots Hopped . | . . . Potential Cave-ins . | . . . Cave-ins Triggered . | . . . Exploration Rate (%) 28 | 5 60 20 Regions Visited 2 Branch Regions 1 Pre-discovered Areas . | . . . Known Exits Taken . | . . . Unknown Exits Taken 2 | 1 1 . Scrap Searched . | . . . Spaces Dug . | . . . Terrain Destroyed . | . . . Melee . | . . . Projectile . | . . . AOE . | . . . Terrain Rammed . | . . . Walls Destroyed . | . . . Machines Disabled . | . . . Actions | -11 -10 -10 --------- Run | Yrd Mat Min Total 611 | 75 488 48 Wait 21 | . 21 . Move 507 | 60 419 28 Hop . | . . . Pick Up 12 | 2 10 . Fast Attach 7 | 7 . . Attach 1 | . . 1 Detach . | . . . Swap 4 | . 4 . Drop 4 | . 4 . Fire 48 | 6 26 16 Melee . | . . . Ram 1 | . . 1 Kick . | . . . Crush 6 | . 4 2 Escape Stasis . | . . . Rewire . | . . . Trap . | . . . Miscellaneous . | . . . Route ------- -11/Scrapyard -10/Materials (discovered 2 exits: [*Mat] / [*Min]) -10/Mines History --------- Turn | Location | Event 13 | -11/Scrapyard | Discovered new exit (range 16) 113 | -11/Scrapyard | Entered Materials 317 | -10/Materials | Build established: Mutant 623 | -10/Materials | Central database locked down 755 | -10/Materials | Discovered new exit (range 15) 875 | -10/Materials | Discovered new exit (range 8) 905 | -10/Materials | Entered Mines 932 | -10/Mines | Assembled infested the area 936 | -10/Mines | Learned 2 Materials zone layouts 996 | -10/Mines | Core integrity fell below 50% 1001 | -10/Mines | Core integrity fell below 20% 1001 | -10/Mines | Destroyed by D-53 Grenadier with Mini Grenade Launcher Last Messages --------------- 00985_ Lgt. Treads destroyed. 00990_ as-30006 destroyed. 00991_ C-45 Heavy ARC bursts open, deploying its payload. 00991_ D-53 Grenadier unfolds itself. 00992_ Slammed into as-12501. 00993_ Acquired 25 matter. 00993_ as-52706 destroyed. 00995_ Slammed into as-90414. 00996_ Acquired 9 matter. 00996_ Ion Engine destroyed. 00996_ Lgt. Treads destroyed. 00996_ as-90414 destroyed. 00996_ as-22457 destroyed. 00996_ as-12501 destroyed. 00997_ Slammed into as-09681. 00998_ as-98366 destroyed. 00998_ as-09681 destroyed. 00998_ as-34942 destroyed. 00999_ as-50596 destroyed. 01000_ Shotgun destroyed. Map ----- +----------------------------------------------------+ | #??????# ##?? ???????????????????????????? | | #?????# ## ???????????????????????????? | | ## #????? ???????????????????????????? | | ?### ##??## ???????????????????????????? | | ???## #### ???????????????????????????? | | ????## #?????????????????????????????????? | | ?????## #??????????????????????????????????? | | ??????## ##??????????????????????????????????? | | ???????# #???????????????????????????????????? | | ??????## ##??????????????????????????????????? | | ?????## #??????????????????????????????????? | | ?????# #??????????????????????????????????? | | ?????# ##??????????????????????????????????? | | ?????# #???????????????????????????????????? | | ?????# ### ####????????????????????????????????? | | ?????# ??# #????????????????????????????????? | | ?????# ??# #????????????????????????????????? | | ????? ??#### #????????????????????????????????? | | ???? ?????# #????????????????????????????????? | | ???#####?????# ##??######???????????????????????? | | ?????######### #### # ###?????????????????????? | | ???# % d ###???????????????????? | | ????????###### d #########???????????? | | ?????????????## #???????????? | | ??????????????## < #??????????? | | ??????????????# @ a aa a ????????? | | ??????????????## ????????? | | ???????????????# ### #????????? | | ???????????????##????# ?????????? | | ?????????????????????## ### ### #?????????? | | ??????????????????????##??? #???? ??????????? | | ???????????????????????????# ##??????#??????????? | | ????????????????????????????###??????????????????? | | ?????????????????????????????????????????????????? | | ?????????????????????????????????????????????????? | | ?????????????????????????????????????????????????? | | ?????????????????????????????????????????????????? | | ?????????????????????????????????????????????????? | | ?????????????????????????????????????????????????? | | ?????????????????????????????????????????????????? | | ?????????????????????????????????????????????????? | | ?????????????????????????????????????????????????? | | ?????????????????????????????????????????????????? | | ?????????????????????????????????????????????????? | | ?????????????????????????????????????????????????? | | ?????????????????????????????????????????????????? | | ?????????????????????????????????????????????????? | | ?????????????????????????????????????????????????? | | ?????????????????????????????????????????????????? | | ?????????????????????????????????????????????????? | +----------------------------------------------------+ Best States ------------- Heat Dissipation 25 Energy Generation 10 Energy Capacity 250 Matter Stores 300 Matter Capacity 300 Sight Range 16 Terrain Scan Density 10 Armor Coverage 225 Evasion (%) 50 Recoil Reduction 2 Item Schematics ----------------- None Robot Schematics ------------------ None Fabricated ------------ Nothing Repaired ---------- Nothing Studied --------- None Alien Tech Used ----------------- None Achievements -------------- None Challenges ------------ None Game ------ Seed GammaGatlingNukerbomber Manual? 0 Play Time 00:06:57 Cumulative 51.8 hours Start 2026.02.05 @ 18:08:28 End 2026.02.05 @ 18:15:46 Sessions 1 Manual Loads 0 Difficulty Rogue Special Mode None Game No. 100 Rogue 100 Adventurer 0 Explorer 0 Win Type - Total 0 Types 0/0/0/0/0/0/0/0/0/0 Lore% 29 Gallery% 29 Achievement% 26 Wizard Run 0 Options --------- Layout 0 ASCII 0 Keyboard 1 Movement Arrows Keybinds 0 Fullscreen 1 Font 18/Smallcaps Map View 38x25 Zoom Use 96% Tactical HUD 1 Map Filters NONE Filters NONE Steam 1 RUN: 1605b12a-964d-4a33-943e-a47b2d30ea4a